bitfinex/quotes_ETHUSD_20250507
["timestamp","ask_amount","ask_price","bid_price","bid_amount"]
[1746639722579,5.602,1805.3,1805.1,14.36010638]
[1746639722882,5.602,1805.3,1805.1,8.76505713]
[1746639723373,5.602,1805.3,1805.1,3.22541131]
[1746639723555,11.14124817,1805.3,1805.1,4.47605113]
[1746639723759,5.602,1805.3,1805.1,4.47605113]
[1746639723961,5.602,1805.3,1805.1,1.25063982]
[1746639724137,5.602,1805.3,1805.1,1.45786511]
[1746639724138,11.14138462,1805.3,1805.1,1.45786511]
[1746639724327,5.5395524,1805.2,1805.1,0.51807823]
[1746639724528,6.3208524,1805.2,1805.1,0.51807823]
[1746639724730,6.32115928,1805.1,1805.0,0.82891838]
[1746639725168,6.48828473,1805.1,1805.0,0.51807823]
[1746639725871,6.48828473,1805.1,1805.0,0.22665923]
[1746639726033,5.54139421,1804.6,1804.5,3.72540202]
[1746639726235,12.13509865,1804.6,1804.5,3.72540202]
[1746639726942,12.13509865,1804.6,1803.8,10.24147618]
[1746639726943,6.36991557,1804.3,1804.2,4.83569071]
[1746639727345,6.53143183,1804.3,1804.2,4.83569071]
[1746639728332,9.53143183,1804.3,1804.2,4.83569071]
[1746639729267,9.53143183,1804.3,1803.7,7.06754796]
[1746639729268,5.54434247,1803.7,1803.4,3.73014624]
[1746639729565,6.37056024,1803.8,1803.4,3.73014624]
[1746639729566,5.54477405,1803.5,1803.4,3.73014624]
[1746639729978,5.6957255,1803.5,1803.4,3.73014624]
[1746639732094,11.24076203,1803.5,1803.3,0.4270554]
[1746639732384,5.54508151,1803.4,1803.3,0.4270554]
[1746639732584,6.35578151,1803.4,1803.3,0.4270554]
[1746639732887,6.50587113,1803.4,1803.3,0.4270554]
[1746639739005,0.15008962,1803.4,1803.3,0.4270554]
[1746639739166,5.75608962,1803.4,1803.3,1.1902554]
[1746639739353,5.606,1803.4,1803.3,2.46074158]
[1746639739688,11.28819366,1803.4,1803.3,0.4270554]
[1746639740189,5.74311215,1803.4,1803.3,0.4270554]
[1746639741655,11.28819366,1803.4,1803.3,0.4270554]
[1746639741863,12.06739366,1803.4,1803.3,0.4270554]
[1746639748214,18.03642828,1803.4,1803.3,0.4270554]
[1746639748498,21.03642828,1803.4,1803.3,0.4270554]
[1746639753505,9.46139366,1803.4,1803.3,0.4270554]
[1746639753806,15.08539366,1803.4,1803.3,0.4270554]
[1746639754797,9.46139366,1803.4,1803.3,0.4270554]
[1746639754967,15.08539366,1803.4,1803.3,0.4270554]
[1746639755484,12.08539366,1803.4,1803.3,0.4270554]
[1746639755883,11.30619366,1803.4,1803.3,0.4270554]
[1746639756409,5.68219366,1803.4,1803.3,0.4270554]
[1746639756577,11.30719366,1803.4,1803.3,0.4270554]
[1746639757378,5.76211215,1803.4,1803.3,0.4270554]
[1746639758001,11.30719366,1803.4,1803.3,0.4270554]
[1746639758772,5.76211215,1803.4,1803.3,0.4270554]
[1746639759312,0.13711215,1803.4,1803.3,6.7559444]
[1746639759603,0.13711215,1803.4,1803.3,7.98610469]
[1746639760011,0.13711215,1803.4,1803.3,8.04155303]
[1746639760517,5.624,1803.5,1803.4,6.33098151]
[1746639761289,5.624,1803.5,1803.4,0.7859]
[1746639761611,5.624,1803.5,1803.4,1.58475047]
[1746639764578,5.72946853,1803.5,1803.4,7.58475047]
[1746639764817,3.25153629,1803.5,1803.4,13.12983198]
[1746639765311,3.25153629,1803.5,1803.4,7.58475047]
[1746639765516,3.25153629,1803.5,1803.4,13.12983198]
[1746639765945,3.25153629,1803.5,1803.4,7.58475047]
[1746639766118,3.25153629,1803.5,1803.4,6.79885047]
[1746639766281,3.25153629,1803.5,1803.4,6.0]
[1746639767018,8.79631034,1803.5,1803.4,6.0]
[1746639767592,3.25153629,1803.5,1803.4,6.0]
[1746639767923,0.10546853,1803.5,1803.4,12.34918151]
[1746639768143,11.16785636,1803.8,1803.4,14.18687563]
[1746639768339,0.10635228,1803.7,1803.4,14.18687563]
[1746639768644,0.10635228,1803.7,1803.4,19.73175231]
[1746639768798,0.10635228,1803.7,1803.5,5.54476545]
[1746639769331,0.10635228,1803.7,1803.4,14.18664867]
[1746639769633,0.10635228,1803.7,1803.5,6.96329746]
[1746639769800,0.10635228,1803.7,1803.6,0.7545]
[1746639770716,5.6505115,1803.7,1803.6,0.7545]
[1746639771030,5.6505115,1803.7,1803.4,6.7545]
[1746639771432,11.19494299,1803.7,1803.4,6.7545]
[1746639771729,11.19494299,1803.7,1803.5,0.67545]
[1746639771730,0.10635228,1803.7,1803.5,0.67545]
[1746639772931,0.10635228,1803.7,1803.6,12.35101096]
[1746639773119,5.54305833,1804.1,1803.8,5.54378199]
[1746639773120,5.623,1804.0,1803.8,5.54378199]
[1746639773326,5.623,1804.0,1803.9,6.0]
[1746639774411,11.16623725,1804.0,1803.9,6.0]
[1746639774606,5.623,1804.0,1803.9,6.0]
[1746639774903,5.623,1804.0,1803.9,12.14354454]
[1746639775210,5.623,1804.1,1804.0,6.29433725]
[1746639775416,5.54183446,1804.5,1804.1,5.5426487]
[1746639775621,5.623,1804.4,1804.3,0.7511]
[1746639775825,5.623,1804.4,1804.3,1.98599188]
[1746639777227,5.72720921,1804.4,1804.3,1.98599188]
[1746639777794,6.92720921,1804.4,1804.3,1.98599188]
[1746639778835,12.46921763,1804.4,1804.3,1.98599188]
[1746639779031,6.92720921,1804.4,1804.3,1.98599188]
[1746639779599,6.92720921,1804.4,1804.3,7.98599188]
[1746639780237,12.46921763,1804.4,1804.3,7.98599188]
[1746639780540,12.46921763,1804.4,1804.3,6.0]
[1746639780713,13.26841763,1804.4,1804.3,6.0]
[1746639780919,13.16420842,1804.4,1804.3,6.0]
[1746639781730,13.26772985,1804.4,1804.3,6.0]
[1746639784147,12.46852985,1804.4,1804.3,6.0]
[1746639785742,5.54231557,1804.3,1804.2,6.0]
[1746639785962,12.46852985,1804.4,1804.2,6.0]
[1746639786244,0.10560231,1804.3,1804.2,6.0]
[1746639786446,12.36500842,1804.4,1804.2,6.0]
[1746639786667,0.10560231,1804.3,1804.2,6.0]
[1746639786811,12.36500842,1804.4,1804.2,6.0]
[1746639787010,5.54231557,1804.3,1804.2,6.0]
[1746639787239,5.64791788,1804.3,1804.2,6.0]
[1746639787955,5.54323725,1804.0,1803.9,6.0]
[1746639788117,11.17723725,1804.0,1803.9,6.0]
[1746639788318,11.28224301,1804.0,1803.9,6.0]
[1746639789749,12.09024301,1804.0,1803.9,6.0]
[1746639790155,11.98523725,1804.0,1803.9,6.0]
[1746639790454,5.54411675,1803.8,1803.6,6.0]
[1746639791019,5.54415922,1803.7,1803.6,6.0]
[1746639791215,5.54411675,1803.8,1803.6,6.0]
[1746639791440,11.08825371,1803.8,1803.6,6.0]
[1746639791644,5.54415922,1803.7,1803.6,6.0]
[1746639793918,5.54415922,1803.7,1803.5,6.0]
[1746639793919,5.54446662,1803.6,1803.5,6.0]
[1746639794257,11.17846662,1803.6,1803.5,6.0]
[1746639795254,11.17846662,1803.6,1803.3,0.4270554]
[1746639795255,5.54477405,1803.5,1803.4,6.0]
[1746639798668,11.17846662,1803.6,1803.4,6.0]
[1746639798834,5.635,1803.5,1803.4,11.54488318]
[1746639799030,5.635,1803.6,1803.5,5.54477405]
[1746639799231,5.635,1803.6,1803.5,2.53906572]
[1746639800152,5.635,1803.6,1803.5,8.08383977]
[1746639800549,11.08750174,1803.9,1803.5,8.08383977]
[1746639800550,5.54337372,1804.0,1803.6,5.54436315]
[1746639800727,5.635,1803.9,1803.7,6.0]
[1746639800927,5.54337372,1804.0,1803.8,6.0]
[1746639801165,5.635,1803.9,1803.8,13.52836477]
[1746639801364,5.635,1803.9,1803.8,7.98451291]
[1746639801956,11.17854454,1803.9,1803.8,7.15441291]
[1746639802269,11.99544454,1803.9,1803.8,6.0]
[1746639805580,11.17854454,1803.9,1803.8,6.0]
[1746639805742,12.37854454,1803.9,1803.8,6.0]
[1746639806678,12.37854454,1803.9,1803.7,6.0]
[1746639807176,6.835,1803.9,1803.7,6.0]
[1746639807362,5.635,1803.9,1803.8,0.6]
[1746639809076,5.635,1803.9,1803.8,6.14385186]
[1746639809386,5.635,1804.2,1804.0,5.54302346]
[1746639809545,5.635,1804.2,1804.1,6.0]
[1746639809746,5.635,1804.2,1804.1,12.70277493]
[1746639809965,5.635,1804.2,1804.1,7.15984494]
[1746639810168,5.635,1804.2,1804.1,12.70277493]
[1746639810447,6.30966488,1804.5,1804.2,5.54242742]
[1746639810448,5.635,1804.5,1804.2,5.54242742]
[1746639810751,11.1767036,1804.5,1804.2,5.54242742]
[1746639810985,11.1767036,1804.5,1804.3,6.0]
[1746639812388,5.635,1804.5,1804.3,6.0]
[1746639812883,5.635,1804.5,1804.4,0.8202]
[1746639813084,5.635,1804.5,1804.4,6.8202]
[1746639818190,11.1767013,1804.5,1804.4,6.0]
[1746639818687,5.54262276,1804.2,1804.1,6.0]
[1746639819102,11.08492239,1804.3,1804.1,6.0]
[1746639819595,5.54262276,1804.2,1804.1,6.0]
[1746639819821,6.30252276,1804.2,1804.1,6.0]
[1746639820157,5.54253751,1804.3,1804.1,6.0]
[1746639820557,5.54262276,1804.2,1804.1,6.0]
[1746639821791,5.54323725,1804.0,1803.9,3.73014624]
[1746639821954,11.18923725,1804.0,1803.9,9.73014624]
[1746639822359,5.646,1804.0,1803.9,9.73014624]
[1746639822564,5.646,1804.0,1803.9,6.0]
[1746639823305,11.18923725,1804.0,1803.9,6.0]
[1746639824399,5.646,1804.0,1803.9,6.0]
[1746639825398,11.18923725,1804.0,1803.9,6.0]
[1746639826204,5.646,1804.0,1803.9,6.0]
[1746639826371,5.646,1804.0,1803.9,7.15437419]
[1746639827270,5.646,1804.0,1803.9,6.0]
[1746639827908,11.18923725,1804.0,1803.9,6.0]
[1746639828082,11.95513725,1804.0,1803.9,6.0]
[1746639829304,5.54354454,1803.9,1803.8,6.0]
[1746639829476,5.54415922,1803.7,1803.6,6.0]
[1746639830385,5.54415922,1803.7,1803.4,6.0]
[1746639830386,6.33916662,1803.6,1803.4,6.0]
[1746639830715,0.28933079,1805.4,1805.3,5.53924555]
[1746639830882,6.33103582,1806.3,1805.4,6.0926805]
[1746639831089,11.96703462,1806.2,1805.4,6.09280894]
[1746639831394,5.53758452,1805.9,1805.4,5.53870674]
[1746639831605,6.33246521,1805.8,1805.3,6.31769953]
[1746639831773,11.53604333,1805.7,1805.3,6.31769953]
[1746639831969,5.53804333,1805.7,1805.3,3.7786]
[1746639832168,5.998,1805.6,1805.3,9.31772443]
[1746639832396,5.998,1805.6,1805.3,3.0]
[1746639832806,5.998,1805.6,1805.3,8.53912136]
[1746639833706,5.998,1805.6,1805.3,3.0]
[1746639834400,11.53633946,1805.6,1805.3,3.0]
[1746639834592,5.998,1805.6,1805.3,3.0]
[1746639834785,5.998,1805.6,1805.2,5.53930535]
[1746639834986,11.53634822,1805.6,1805.1,9.31827153]
[1746639835187,5.998,1805.6,1805.2,5.53953334]
[1746639835386,5.998,1805.6,1805.2,5.95233461]
[1746639835592,5.998,1805.6,1805.3,11.5391772]
[1746639836184,5.998,1805.6,1805.3,6.0]
[1746639836418,11.5363664,1805.6,1805.3,6.0]
[1746639836621,5.53863195,1805.5,1805.4,6.0]
[1746639836817,5.998,1805.6,1805.1,6.0]
[1746639837122,5.53921157,1805.4,1805.1,6.0]
[1746639838689,5.53940279,1805.3,1805.1,6.0]
[1746639838886,5.996,1805.2,1805.1,6.0]
[1746639839300,1.69798353,1807.2,1806.0,0.55]
[1746639839484,5.53457083,1806.9,1806.4,5.96903462]
[1746639839690,6.284,1807.1,1806.4,5.53564919]
[1746639839985,5.53481838,1806.8,1806.4,5.53576281]
[1746639840186,5.53504961,1806.7,1806.2,11.50551884]
[1746639840385,11.81950712,1806.6,1806.2,11.50550398]
[1746639841217,6.282,1806.5,1806.2,11.50532913]
[1746639841406,6.282,1806.5,1806.2,5.96903462]
[1746639841582,6.282,1806.5,1806.2,11.50536638]
[1746639841788,6.282,1806.5,1806.1,3.0]
[1746639841988,6.282,1806.5,1806.3,5.5360819]
[1746639842190,6.282,1806.5,1806.3,5.53610235]
[1746639842523,6.282,1806.5,1806.2,5.53629296]
[1746639842705,6.282,1806.5,1806.2,5.94837903]
[1746639843105,6.282,1806.5,1806.3,5.53602747]
[1746639843511,6.282,1806.5,1806.2,6.80198184]
[1746639843724,11.81760143,1806.5,1806.2,1.26571537]
[1746639844220,11.81772622,1806.5,1806.2,1.26571537]
[1746639844538,5.53617892,1806.3,1806.2,6.0]
[1746639844891,6.44915361,1806.3,1806.2,6.0]
[1746639845428,6.44915361,1806.3,1805.8,0.40963293]
[1746639845429,5.53695991,1806.1,1805.9,6.0]
[1746639845637,5.53695991,1806.1,1806.0,6.0]
[1746639845815,11.81795991,1806.1,1806.0,6.0]
[1746639846407,5.53736922,1806.0,1805.8,6.0]
[1746639846721,5.53730322,1806.0,1805.8,6.0]
[1746639848403,5.53740517,1805.9,1805.8,6.0]
[1746639849402,5.53843613,1805.6,1805.4,6.0]
[1746639849725,11.81843613,1805.6,1805.5,6.0]
[1746639849889,11.81843613,1805.6,1805.4,0.6]
[1746639850091,6.28,1805.6,1805.4,0.6]
[1746639851389,3.80478061,1805.6,1805.4,0.6]
[1746639851714,9.34313042,1805.6,1805.4,0.6]
[1746639852431,9.34313042,1805.6,1805.3,6.4062829]
[1746639852729,3.80478061,1805.6,1805.3,11.94550346]
[1746639853326,3.80478061,1805.6,1805.3,17.48456922]
[1746639853497,3.80478061,1805.6,1805.3,11.94534866]
[1746639853693,3.80478061,1805.6,1805.3,11.94534263]
[1746639853898,3.80478061,1805.6,1805.3,13.77131376]
[1746639854098,9.34323248,1805.6,1805.3,8.23225403]
[1746639854633,9.34323248,1805.6,1805.4,6.0]
[1746639855532,3.80478061,1805.6,1805.4,6.0]
[1746639855704,3.80478061,1805.6,1805.4,11.53880897]
[1746639855904,3.80478061,1805.6,1805.5,1.1538809]
[1746639857203,3.80478061,1805.6,1805.4,11.53878788]
[1746639857711,3.80478061,1805.6,1805.5,6.0]
[1746639859738,3.91874502,1805.6,1805.5,6.0]
[1746639861350,9.45707023,1805.6,1805.5,6.0]
[1746639863607,9.45707023,1805.6,1805.4,6.0]
[1746639863608,5.53863195,1805.5,1805.4,6.0]
[1746639863809,5.65171885,1805.5,1805.4,6.0]
[1746639865146,0.1130869,1805.5,1805.4,6.0]
[1746639865649,5.65171885,1805.5,1805.4,6.0]
[1746639865812,5.65171885,1805.5,1805.4,6.6]
[1746639865813,0.1130869,1805.5,1805.4,6.6]
[1746639866008,3.80478061,1805.6,1805.5,5.53863195]
[1746639866214,3.91677626,1805.6,1805.5,5.53863195]
[1746639866409,3.91677626,1805.6,1805.4,6.6]
[1746639866613,9.45514857,1805.6,1805.4,6.6]
[1746639867432,3.91677626,1805.6,1805.4,6.6]
[1746639868024,3.91677626,1805.6,1805.5,0.66]
[1746639868223,3.91677626,1805.6,1805.5,6.19863195]
[1746639868421,0.11199565,1805.6,1805.5,12.22205231]
[1746639868625,5.53720966,1806.0,1805.6,5.53828481]
[1746639868626,6.281,1805.8,1805.6,5.53828481]
[1746639868832,0.11282347,1805.7,1805.5,18.47414518]
[1746639869036,0.11282347,1805.7,1805.6,1.84741452]
[1746639869238,0.11282347,1805.7,1805.5,12.50584248]
[1746639869560,0.11282347,1805.7,1805.6,5.84880646]
[1746639869856,0.11282347,1805.7,1805.6,11.84880646]
[1746639870014,0.11282347,1805.7,1805.6,6.31048125]
[1746639871944,0.11282347,1805.7,1805.6,6.0]
[1746639872144,0.11282347,1805.7,1805.6,6.31060258]
[1746639872765,14.99471424,1805.8,1805.6,6.31060258]
[1746639873072,0.10342151,1805.7,1805.6,6.31060258]
[1746639873272,0.10342151,1805.7,1805.6,6.31061465]
[1746639877568,5.64144,1805.7,1805.6,6.31061465]
[1746639877778,5.64144,1805.7,1805.6,6.31127611]
[1746639878440,5.64144,1805.7,1805.6,6.0]
[1746639878637,5.53844319,1805.6,1805.4,9.73014624]
[1746639878982,0.10428298,1805.5,1805.4,9.73014624]
[1746639879154,0.10428298,1805.5,1805.4,10.04148403]
[1746639879578,0.10428298,1805.5,1805.4,9.73014624]
[1746639879878,0.10428298,1805.5,1805.4,6.0]
[1746639880081,0.10428298,1805.5,1805.4,12.17960524]
[1746639880375,0.10428298,1805.5,1805.4,12.93990524]
[1746639880573,15.77436839,1805.8,1805.4,7.40096651]
[1746639880574,3.91900473,1805.8,1805.4,7.40096651]
[1746639880777,0.10373483,1805.5,1805.4,12.93990524]
[1746639881079,3.91900473,1805.8,1805.5,5.53844738]
[1746639881243,3.91900473,1805.8,1805.6,0.55384474]
[1746639881644,9.45680202,1805.8,1805.6,0.55384474]
[1746639881991,11.07642723,1805.7,1805.4,7.40096651]
[1746639882291,5.53814095,1805.7,1805.4,7.40096651]
[1746639882764,5.53814095,1805.7,1805.4,12.93990205]
[1746639883078,3.91900473,1805.8,1805.5,5.53842574]
[1746639883571,9.45678515,1805.8,1805.4,16.66984577]
[1746639883780,9.45678515,1805.8,1805.5,1.66698458]
[1746639884778,9.45678515,1805.8,1805.6,6.0]
[1746639885283,9.45678515,1805.8,1805.7,0.51882431]
[1746639887087,5.53801849,1805.7,1805.6,6.0]
[1746639887643,5.53832521,1805.6,1805.5,6.0]
[1746639887981,5.53801849,1805.7,1805.5,6.0]
[1746639888348,5.53832521,1805.6,1805.5,6.0]
[1746639888549,4.67020473,1805.8,1805.5,12.13845623]
[1746639888750,3.91900473,1805.8,1805.5,12.95735623]
[1746639889680,3.91900473,1805.8,1805.6,0.51882502]
[1746639889885,9.45673969,1805.8,1805.6,0.51882502]
[1746639890087,9.45673969,1805.8,1805.7,0.51882502]
[1746639890283,3.91900473,1805.8,1805.7,0.51882502]
[1746639890583,9.45671654,1805.8,1805.7,0.51882502]
[1746639890886,9.45671654,1805.8,1805.7,6.51882502]
[1746639891697,9.45671654,1805.8,1805.7,6.0]
[1746639892551,9.45671654,1805.8,1805.7,6.51889003]
[1746639893888,9.45671654,1805.8,1805.7,0.51889003]
[1746639895317,5.53816835,1805.7,1805.5,9.73014624]
[1746639895665,0.10375179,1805.6,1805.5,9.73014624]
[1746639896360,0.10375179,1805.6,1805.5,11.25705304]
[1746639897599,5.642077,1805.6,1805.5,9.73014624]
[1746639898398,5.642077,1805.6,1805.5,6.0]
[1746639900368,5.642077,1805.6,1805.4,3.73014624]
[1746639900570,6.36343195,1805.5,1805.4,3.73014624]
[1746639901222,5.53853301,1805.6,1805.4,3.73014624]
[1746639901372,5.53863195,1805.5,1805.4,3.73014624]
[1746639904010,5.53893873,1805.4,1805.3,6.0]
[1746639904221,5.53786378,1805.8,1805.4,5.53880918]
[1746639904419,11.54886378,1805.8,1805.5,0.31125419]
[1746639904581,17.08684304,1805.8,1805.6,0.31125419]
[1746639904783,11.54886378,1805.8,1805.6,0.31125419]
[1746639905081,11.54886378,1805.8,1805.7,0.31125419]
[1746639906520,5.53832521,1805.6,1805.5,6.0]
[1746639907321,6.34772521,1805.6,1805.5,6.0]
[1746639908181,6.34803195,1805.5,1805.4,3.73014624]
[1746639908409,12.31606568,1805.5,1805.4,3.73014624]
[1746639909117,6.34803195,1805.5,1805.4,3.73014624]
[1746639909575,6.34803195,1805.5,1805.1,9.73014624]
[1746639909781,5.53374141,1805.2,1805.1,9.73014624]
[1746639910013,5.53374141,1805.2,1805.1,3.73014624]
[1746639911816,5.53927635,1805.3,1805.1,3.73014624]
[1746639911817,5.53942394,1805.3,1805.1,3.73014624]
[1746639912285,11.55012021,1805.4,1805.1,3.73014624]
[1746639912484,5.53935159,1805.3,1805.1,4.04100643]
[1746639912719,11.55012021,1805.4,1805.1,5.04052546]
[1746639912929,11.55012021,1805.4,1805.1,5.53846527]
[1746639913301,17.08930398,1805.4,1805.1,5.53846527]
[1746639913628,17.08933923,1805.4,1805.1,1.80831903]
[1746639913830,0.8094,1805.5,1805.1,1.80831903]
[1746639913831,5.53872595,1805.5,1805.1,7.40331431]
[1746639914125,6.012,1805.5,1805.3,5.5391327]
[1746639914420,5.53815698,1805.7,1805.4,6.34763743]
[1746639914421,6.012,1805.7,1805.4,6.34763743]
[1746639914591,6.012,1805.7,1805.5,6.0]
[1746639914793,6.012,1805.7,1805.6,6.0]
[1746639914794,11.55004153,1805.7,1805.6,6.0]
[1746639915010,5.53758892,1805.9,1805.6,6.6]
[1746639915331,11.54958892,1805.9,1805.7,0.7732]
[1746639915913,11.54951484,1805.9,1805.7,0.7732]
[1746639916625,11.54961352,1805.9,1805.7,0.7732]
[1746639916996,17.08726827,1805.9,1805.7,0.7732]
[1746639917207,17.08726827,1805.9,1805.7,1.51052]
[1746639918238,11.54961352,1805.9,1805.7,1.51052]
[1746639918437,6.012,1805.9,1805.7,1.51052]
[1746639918607,11.54957824,1805.9,1805.7,1.51052]
[1746639918936,5.53771181,1805.8,1805.7,1.51052]
[1746639920751,5.53771181,1805.8,1805.7,6.0]
[1746639922653,17.08720934,1805.9,1805.7,6.0]
[1746639922839,5.53771181,1805.8,1805.7,6.0]
[1746639929773,5.53771181,1805.8,1805.6,6.0]
[1746639930056,11.07566399,1805.8,1805.6,6.0]
[1746639930360,5.53771181,1805.8,1805.6,6.0]
[1746639930560,11.54945708,1805.9,1805.6,7.23003222]
[1746639930932,11.54945708,1805.9,1805.6,12.76824544]
[1746639931135,5.5366426,1806.2,1805.8,0.8053]
[1746639931354,5.918,1806.0,1805.9,11.59267996]
[1746639931687,6.21485659,1806.0,1805.9,12.36494139]
[1746639931840,6.21485659,1806.0,1805.9,14.75296521]
[1746639932045,6.21485659,1806.0,1805.9,14.75292416]
[1746639932690,0.29685659,1806.0,1805.9,14.75292416]
[1746639932845,11.45450092,1806.2,1805.9,14.75292416]
[1746639933041,0.2997391,1806.1,1806.0,0.5172422]
[1746639933275,11.45450092,1806.2,1806.0,1.99253462]
[1746639933477,5.83653108,1806.1,1806.0,1.03383447]
[1746639933687,0.2997391,1806.1,1806.0,1.03383447]
[1746639933985,11.45450092,1806.2,1806.0,0.51659227]
[1746639934151,0.2997391,1806.1,1805.9,13.4079868]
[1746639934352,0.2997391,1806.1,1805.9,18.94519243]
[1746639934681,19.955,1806.3,1806.1,0.781]
[1746639935176,19.955,1806.3,1806.1,6.31771792]
[1746639935757,19.955,1806.3,1806.1,6.31772442]
[1746639935972,11.45393184,1806.4,1806.1,6.73852294]
[1746639936470,5.53539676,1806.6,1806.2,6.781]
[1746639936649,5.918,1806.5,1806.3,12.21424383]
[1746639936845,5.918,1806.5,1806.3,6.6781]
[1746639936846,11.45369901,1806.5,1806.3,6.6781]
[1746639937474,5.918,1806.5,1806.3,6.6781]
[1746639937879,5.918,1806.5,1806.3,6.73345546]
[1746639938178,5.918,1806.5,1806.4,6.209218]
[1746639938386,5.917,1806.7,1806.5,0.7986]
[1746639938583,11.45165491,1806.8,1806.5,6.38938689]
[1746639938882,5.917,1806.8,1806.6,11.53508363]
[1746639939184,5.53387216,1807.1,1806.8,5.53445288]
[1746639939185,5.917,1807.1,1806.8,5.53445288]
[1746639939350,5.917,1807.1,1806.8,5.58979167]
[1746639939551,11.45093316,1807.1,1806.7,16.48690175]
[1746639940695,5.53360346,1807.2,1806.9,5.53430317]
[1746639940990,11.44972807,1807.1,1807.0,6.0]
[1746639941366,5.916,1807.1,1807.0,6.0]
[1746639941794,11.44972807,1807.1,1807.0,6.0]
[1746639943487,11.44862605,1807.5,1807.0,7.9247]
[1746639943694,5.53299211,1807.4,1807.1,6.0]
[1746639943911,5.916,1807.5,1807.1,6.0]
[1746639944114,5.53334433,1807.3,1807.1,6.0]
[1746639944278,5.53296025,1807.4,1807.2,6.0]
[1746639944977,5.916,1807.5,1807.2,6.0]
[1746639945174,5.52912693,1808.7,1807.4,0.55]
[1746639945398,5.53110395,1808.0,1807.6,5.53197015]
[1746639945590,11.44710395,1808.0,1807.7,6.0]
[1746639945785,5.53137243,1807.9,1807.8,6.0]
[1746639946306,14.49796311,1808.4,1807.9,0.826]
[1746639946307,5.53031806,1808.3,1807.9,0.826]
[1746639946526,5.53046173,1808.2,1807.9,0.826]
[1746639946821,5.53046173,1808.2,1807.9,2.01487141]
[1746639947037,0.7515,1808.3,1807.9,2.01487141]
[1746639947194,5.53056438,1808.2,1807.9,2.01487141]
[1746639947525,11.06116641,1808.2,1807.9,2.01487141]
[1746639947727,5.53056438,1808.2,1807.9,2.01487141]
[1746639947894,5.53056438,1808.2,1807.9,7.54613]
[1746639948090,6.6665,1808.5,1808.0,6.28532614]
[1746639948305,11.44489882,1808.4,1808.1,6.0]
[1746639948493,5.53006044,1808.3,1808.1,6.0]
[1746639949124,5.53036168,1808.2,1808.1,6.0]
[1746639949623,5.53006044,1808.3,1808.1,6.0]
[1746639949789,5.70165001,1808.2,1808.1,6.0]
[1746639950524,0.17128833,1808.2,1808.1,6.0]
[1746639950722,0.17128833,1808.2,1808.1,6.68099178]
[1746639950912,5.52872787,1808.8,1808.3,6.07989422]
[1746639951112,5.913,1808.9,1808.5,5.52944163]
[1746639951425,5.52871099,1808.8,1808.5,6.0]
[1746639951930,5.5285272,1808.8,1808.5,6.0]
[1746639952225,5.52871732,1808.8,1808.5,7.15296032]
[1746639952439,5.913,1808.9,1808.5,7.15296032]
[1746639952440,11.44039301,1808.9,1808.5,7.15296032]
[1746639952608,5.912,1808.9,1808.6,5.52892955]
[1746639953000,5.912,1808.9,1808.6,5.58421443]
[1746639953202,5.912,1808.9,1808.7,0.55842144]
[1746639953544,5.912,1808.9,1808.6,5.4759692]
[1746639954044,11.44023479,1808.9,1808.5,13.4411548]
[1746639956057,5.5281632,1809.0,1808.6,5.52891127]
[1746639956217,11.05636805,1809.0,1808.6,5.52891127]
[1746639956401,5.5281632,1809.0,1808.6,5.52891127]
[1746639956606,5.52837421,1808.9,1808.7,6.0]
[1746639957032,5.52849845,1808.9,1808.7,6.0]
[1746639957553,5.5285272,1808.8,1808.7,6.0]
[1746639957759,5.52846164,1808.9,1808.7,6.0]
[1746639958251,11.05692036,1808.9,1808.7,6.0]
[1746639958552,5.52845872,1808.9,1808.7,6.0]
[1746639958751,5.5285272,1808.8,1808.7,6.0]
[1746639959512,6.3560272,1808.8,1808.7,6.0]
[1746639960108,5.52845872,1808.9,1808.7,6.0]
[1746639960313,5.5285272,1808.8,1808.7,6.0]
[1746639961253,6.35559182,1809.0,1808.7,6.0]
[1746639961935,5.52809182,1809.0,1808.7,6.74851701]
[1746639962133,5.52809182,1809.0,1808.7,12.27733194]
[1746639962335,5.5285272,1808.8,1808.7,6.0]
[1746639962514,5.52944429,1808.5,1808.4,6.0]
[1746639962852,5.5298403,1808.4,1808.2,6.0]
[1746639963419,5.53005585,1808.3,1808.2,6.0]
[1746639963618,5.53066755,1808.1,1808.0,6.0]
[1746639963816,5.53066755,1808.1,1807.8,11.53152078]
[1746639964015,11.43766755,1808.1,1807.8,9.10825597]
[1746639964432,5.907,1808.1,1807.8,14.69508535]
[1746639964629,11.43770149,1808.1,1807.8,9.10825597]
[1746639964953,0.15348369,1808.0,1807.8,9.10825597]
[1746639965341,0.15348369,1808.0,1807.8,14.63982192]
[1746639965542,0.15348369,1808.0,1807.9,6.99526157]
[1746639965851,5.68445988,1808.0,1807.8,9.10825597]
[1746639966351,5.67181714,1807.9,1807.8,6.0]
[1746639967235,5.67181714,1807.9,1807.3,13.74]
[1746639967236,0.14053776,1807.9,1807.6,6.0]
[1746639967464,5.5320252,1807.7,1807.4,6.05532113]
[1746639967652,0.13717888,1807.6,1807.4,6.05532113]
[1746639967857,0.13717888,1807.6,1807.5,0.60553211]
[1746639968276,0.13717888,1807.6,1807.5,1.60553211]
[1746639968782,5.907,1807.7,1807.5,1.60553211]
[1746639969078,0.13717888,1807.6,1807.5,1.60553211]
[1746639969239,11.43889542,1807.7,1807.5,1.60553211]
[1746639969433,0.13717888,1807.6,1807.5,1.60553211]
[1746639969876,5.66937626,1807.6,1807.5,1.0]
[1746639971581,0.13717888,1807.6,1807.5,1.0]
[1746639971870,0.13717888,1807.6,1807.5,7.0]
[1746639972045,11.43894662,1807.7,1807.5,7.0]
[1746639972246,0.13219263,1807.6,1807.5,12.53250345]
[1746639972449,0.13219263,1807.6,1807.5,28.90742149]
[1746639972671,5.908,1808.2,1807.9,6.28466586]
[1746639972863,11.43841384,1808.2,1807.9,6.28466586]
[1746639973069,0.12026426,1808.1,1808.0,22.32628255]
[1746639973268,0.12026426,1808.1,1808.0,19.27097345]
[1746639973465,5.908,1808.3,1808.0,19.27097345]
[1746639973466,5.908,1808.3,1808.1,5.53052922]
[1746639973641,0.12186637,1808.2,1808.1,5.53052922]